[Event "Early-Titled-Tuesday-Blitz-February-06-2024"]
[Site "Chess.com"]
[Date "2024.02.06"]
[Round "3"]
[White "ChEsper99"]
[Black "Rdeux42"]
[Result "0-1"]
[WhiteElo "2207"]
[BlackElo "2441"]
[TimeControl "180+1"]
[EndTime "8:27:56 PST"]
[Termination "Rdeux42 won by resignation"]

1. e4 {[%clk 0:02:57.2]} 1... c5 {[%clk 0:02:59.6]} 2. Nf3 {[%clk 0:02:57.1]}
2... d6 {[%clk 0:03:00]} 3. Bb5+ {[%clk 0:02:56.4]} 3... Bd7 {[%clk 0:02:57.4]}
4. Bxd7+ {[%clk 0:02:55.2]} 4... Nxd7 {[%clk 0:02:58.3]} 5. O-O {[%clk
0:02:55.4]} 5... Ngf6 {[%clk 0:02:58.7]} 6. d3 {[%clk 0:02:54.4]} 6... e6 {[%clk
0:02:54.9]} 7. c4 {[%clk 0:02:54.4]} 7... Be7 {[%clk 0:02:49]} 8. Nc3 {[%clk
0:02:53.8]} 8... O-O {[%clk 0:02:49.5]} 9. h3 {[%clk 0:02:44.9]} 9... Ne5 {[%clk
0:02:46.5]} 10. Ne1 {[%clk 0:02:44.5]} 10... a6 {[%clk 0:02:44.6]} 11. f4 {[%clk
0:02:44.9]} 11... Nc6 {[%clk 0:02:44.2]} 12. Nf3 {[%clk 0:02:41.1]} 12... Rb8
{[%clk 0:02:41.4]} 13. a4 {[%clk 0:02:36.9]} 13... Nd7 {[%clk 0:02:12.3]} 14.
Be3 {[%clk 0:02:20.4]} 14... Bf6 {[%clk 0:02:10.7]} 15. Qd2 {[%clk 0:02:07.2]}
15... Re8 {[%clk 0:02:01.4]} 16. d4 {[%clk 0:01:58.7]} 16... cxd4 {[%clk
0:02:00.2]} 17. Nxd4 {[%clk 0:01:57.5]} 17... Nc5 {[%clk 0:01:55.1]} 18. Nxc6
{[%clk 0:01:41.3]} 18... bxc6 {[%clk 0:01:56]} 19. Bxc5 {[%clk 0:01:41.3]} 19...
dxc5 {[%clk 0:01:55.9]} 20. Qxd8 {[%clk 0:01:38.4]} 20... Rexd8 {[%clk
0:01:56.8]} 21. e5 {[%clk 0:01:38.7]} 21... Be7 {[%clk 0:01:50.6]} 22. Rab1
{[%clk 0:00:46.7]} 22... Rd4 {[%clk 0:01:46.5]} 23. b3 {[%clk 0:00:43.1]} 23...
Rd3 {[%clk 0:01:42.9]} 24. Rf3 {[%clk 0:00:38.4]} 24... Rxf3 {[%clk 0:01:39.3]}
25. gxf3 {[%clk 0:00:39.3]} 25... h5 {[%clk 0:01:33.6]} 26. Kf2 {[%clk
0:00:37.2]} 26... Kh7 {[%clk 0:01:33.8]} 27. Ke3 {[%clk 0:00:37.1]} 27... Kg6
{[%clk 0:01:33.7]} 28. Ke4 {[%clk 0:00:28.4]} 28... Rd8 {[%clk 0:01:28.4]} 29.
Rd1 {[%clk 0:00:27.9]} 29... Rd4+ {[%clk 0:01:20.7]} 30. Rxd4 {[%clk 0:00:25.3]}
30... cxd4 {[%clk 0:01:21.6]} 31. Kxd4 {[%clk 0:00:26.2]} 31... Kf5 {[%clk
0:01:21.2]} 32. Ne2 {[%clk 0:00:20.5]} 32... c5+ {[%clk 0:01:13.6]} 33. Ke3
{[%clk 0:00:17]} 33... Bh4 {[%clk 0:01:06.7]} 34. Nc3 {[%clk 0:00:11.2]} 34...
Bg3 {[%clk 0:01:04.8]} 35. Ne2 {[%clk 0:00:11.7]} 35... Be1 {[%clk 0:00:51.6]}
36. Kd3 {[%clk 0:00:05.7]} 36... h4 {[%clk 0:00:46.6]} 37. Ke3 {[%clk
0:00:01.4]} 37... a5 {[%clk 0:00:47]} 38. Kd3 {[%clk 0:00:01.5]} 38... Bf2
{[%clk 0:00:43]} 39. Kd2 {[%clk 0:00:01.4]} 39... Bg3 {[%clk 0:00:33.6]} 40. Nc1
{[%clk 0:00:01.7]} 40... Bxf4+ {[%clk 0:00:33.5]} 41. Kc2 {[%clk 0:00:01.7]}
41... Bxc1 {[%clk 0:00:33.7]} 42. Kxc1 {[%clk 0:00:02.6]} 42... Kxe5 {[%clk
0:00:33.5]} 43. Kc2 {[%clk 0:00:03]} 43... Kd4 {[%clk 0:00:33.1]} 44. Kd2 {[%clk
0:00:03.3]} 44... e5 {[%clk 0:00:33.5]} 45. Ke2 {[%clk 0:00:02.4]} 45... g5
{[%clk 0:00:32.1]} 46. Kd2 {[%clk 0:00:02.5]} 46... f5 {[%clk 0:00:32.2]} 0-1

[Event "Early-Titled-Tuesday-Blitz-February-06-2024"]
[Site "Chess.com"]
[Date "2024.02.06"]
[Round "3"]
[White "Nf3c5"]
[Black "Seochesspie"]
[Result "0-1"]
[WhiteElo "2570"]
[BlackElo "2812"]
[TimeControl "180+1"]
[EndTime "8:27:57 PST"]
[Termination "Seochesspie won by resignation"]

1. e4 {[%clk 0:03:00.9]} 1... c5 {[%clk 0:02:59.9]} 2. Nf3 {[%clk 0:03:00.4]}
2... Nc6 {[%clk 0:03:00.6]} 3. d4 {[%clk 0:02:51.4]} 3... cxd4 {[%clk
0:03:00.2]} 4. Nxd4 {[%clk 0:02:52.3]} 4... e6 {[%clk 0:03:00.9]} 5. a3 {[%clk
0:02:49.6]} 5... Qc7 {[%clk 0:02:52.7]} 6. Be3 {[%clk 0:02:47.8]} 6... Nf6
{[%clk 0:02:51.8]} 7. Nc3 {[%clk 0:02:46.8]} 7... a6 {[%clk 0:02:49.8]} 8. f4
{[%clk 0:02:42.4]} 8... d6 {[%clk 0:02:49.7]} 9. Qf3 {[%clk 0:02:40.5]} 9... Be7
{[%clk 0:02:48.3]} 10. O-O-O {[%clk 0:02:15]} 10... Bd7 {[%clk 0:02:47.3]} 11.
Rg1 {[%clk 0:01:47.6]} 11... h5 {[%clk 0:02:40.4]} 12. h3 {[%clk 0:01:47]} 12...
h4 {[%clk 0:02:40]} 13. Be2 {[%clk 0:01:39.8]} 13... Rc8 {[%clk 0:02:34.1]} 14.
Kb1 {[%clk 0:01:39.2]} 14... b5 {[%clk 0:02:32.9]} 15. Nxc6 {[%clk 0:01:31]}
15... Bxc6 {[%clk 0:02:32.9]} 16. g4 {[%clk 0:01:31.2]} 16... hxg3 {[%clk
0:02:32.6]} 17. Rxg3 {[%clk 0:01:31.2]} 17... Bf8 {[%clk 0:02:23.1]} 18. Bd3
{[%clk 0:01:30.1]} 18... Qb7 {[%clk 0:02:20.3]} 19. Bd4 {[%clk 0:01:27.5]} 19...
a5 {[%clk 0:02:10.8]} 20. b4 {[%clk 0:01:02.7]} 20... axb4 {[%clk 0:02:05.2]}
21. axb4 {[%clk 0:01:03.6]} 21... Nh5 {[%clk 0:01:39.9]} 22. Rg5 {[%clk
0:01:01.8]} 22... Nf6 {[%clk 0:01:28.2]} 23. Qe2 {[%clk 0:00:33.3]} 23... Rxh3
{[%clk 0:01:23.9]} 24. Rxb5 {[%clk 0:00:29.4]} 24... Bxb5 {[%clk 0:01:14.3]} 25.
Bxb5+ {[%clk 0:00:29.9]} 25... Nd7 {[%clk 0:01:07.2]} 26. Rd3 {[%clk 0:00:14.6]}
26... Rxd3 {[%clk 0:01:05.6]} 27. Qxd3 {[%clk 0:00:14.2]} 27... Kd8 {[%clk
0:00:52.5]} 28. Kc1 {[%clk 0:00:12.6]} 28... g6 {[%clk 0:00:40.2]} 29. Ba6
{[%clk 0:00:12.3]} 29... Qxb4 {[%clk 0:00:35.5]} 30. Bxc8 {[%clk 0:00:12.9]}
30... Kxc8 {[%clk 0:00:36.4]} 31. Qa6+ {[%clk 0:00:13]} 31... Kd8 {[%clk
0:00:36.6]} 32. Nb5 {[%clk 0:00:13]} 32... Ke7 {[%clk 0:00:20.1]} 33. e5 {[%clk
0:00:12.7]} 33... dxe5 {[%clk 0:00:15]} 34. Bxe5 {[%clk 0:00:09.1]} 34... Nxe5
{[%clk 0:00:12.5]} 35. fxe5 {[%clk 0:00:06.9]} 35... Bh6+ {[%clk 0:00:12.2]} 0-1

[Event "Early-Titled-Tuesday-Blitz-February-06-2024"]
[Site "Chess.com"]
[Date "2024.02.06"]
[Round "3"]
[White "JoachimBN"]
[Black "Keures"]
[Result "0-1"]
[WhiteElo "2607"]
[BlackElo "2440"]
[TimeControl "180+1"]
[EndTime "8:27:57 PST"]
[Termination "Keures won by checkmate"]

1. d4 {[%clk 0:03:00.9]} 1... Nf6 {[%clk 0:02:59.2]} 2. c4 {[%clk 0:02:58.5]}
2... c5 {[%clk 0:02:57.1]} 3. d5 {[%clk 0:02:58.4]} 3... b5 {[%clk 0:02:57]} 4.
Qc2 {[%clk 0:02:58.6]} 4... b4 {[%clk 0:02:56.5]} 5. e4 {[%clk 0:02:58.8]} 5...
d6 {[%clk 0:02:55.5]} 6. f4 {[%clk 0:02:59.2]} 6... g6 {[%clk 0:02:50.5]} 7. Nf3
{[%clk 0:02:59]} 7... Bg7 {[%clk 0:02:50.5]} 8. Bd3 {[%clk 0:02:59.5]} 8... O-O
{[%clk 0:02:50.4]} 9. O-O {[%clk 0:02:48]} 9... e6 {[%clk 0:02:50.4]} 10. a3
{[%clk 0:00:55.5]} 10... exd5 {[%clk 0:02:46.4]} 11. exd5 {[%clk 0:00:51.9]}
11... Bd7 {[%clk 0:02:26.1]} 12. h3 {[%clk 0:00:50]} 12... Qc8 {[%clk 0:02:14]}
13. Kh2 {[%clk 0:00:43.3]} 13... Bf5 {[%clk 0:02:04.9]} 14. g4 {[%clk
0:00:40.9]} 14... Bxd3 {[%clk 0:02:03.3]} 15. Qxd3 {[%clk 0:00:41.8]} 15... Re8
{[%clk 0:01:57.4]} 16. Nbd2 {[%clk 0:00:39.6]} 16... bxa3 {[%clk 0:00:56.4]} 17.
Rxa3 {[%clk 0:00:39.1]} 17... Na6 {[%clk 0:00:54.5]} 18. Nb3 {[%clk 0:00:18.8]}
18... Nb4 {[%clk 0:00:54.4]} 19. Qd1 {[%clk 0:00:19.4]} 19... Re7 {[%clk
0:00:46.3]} 20. Bd2 {[%clk 0:00:16.1]} 20... Ne4 {[%clk 0:00:39.8]} 21. Be1
{[%clk 0:00:15]} 21... Bxb2 {[%clk 0:00:34.9]} 22. Ra4 {[%clk 0:00:15.6]} 22...
Qe8 {[%clk 0:00:30.5]} 23. Bh4 {[%clk 0:00:13.3]} 23... Nc3 {[%clk 0:00:24.6]}
24. Qd2 {[%clk 0:00:12.7]} 24... Re2+ {[%clk 0:00:20.2]} 25. Rf2 {[%clk
0:00:11.9]} 25... Rxd2 {[%clk 0:00:20.4]} 26. Nbxd2 {[%clk 0:00:12.4]} 26...
Nxa4 {[%clk 0:00:19.1]} 27. f5 {[%clk 0:00:12.8]} 27... Nd3 {[%clk 0:00:18.1]}
28. Rg2 {[%clk 0:00:13.2]} 28... Be5+ {[%clk 0:00:17.7]} 29. Kg1 {[%clk
0:00:12.8]} 29... Nf4 {[%clk 0:00:17.8]} 30. Rh2 {[%clk 0:00:12.8]} 30... Nb2
{[%clk 0:00:14.8]} 31. Bg5 {[%clk 0:00:12.8]} 31... Nbd3 {[%clk 0:00:14.7]} 32.
h4 {[%clk 0:00:13.2]} 32... Rb8 {[%clk 0:00:14.5]} 33. Rh1 {[%clk 0:00:10.5]}
33... Rb2 {[%clk 0:00:13.7]} 34. Nf1 {[%clk 0:00:11.2]} 34... Ne2+ {[%clk
0:00:13.3]} 35. Kg2 {[%clk 0:00:10.6]} 35... Nd4+ {[%clk 0:00:13.6]} 36. Kh3
{[%clk 0:00:11]} 36... Nxf3 {[%clk 0:00:13.4]} 37. Ne3 {[%clk 0:00:11.3]} 37...
Nxg5+ {[%clk 0:00:13.6]} 38. hxg5 {[%clk 0:00:11.5]} 38... Bf4 {[%clk 0:00:13]}
39. Ng2 {[%clk 0:00:12]} 39... Bxg5 {[%clk 0:00:12.9]} 40. Rg1 {[%clk
0:00:12.3]} 40... Qe2 {[%clk 0:00:12.8]} 41. Rh1 {[%clk 0:00:12.3]} 41... Qxg2#
{[%clk 0:00:12.9]} 0-1

[Event "Early-Titled-Tuesday-Blitz-February-06-2024"]
[Site "Chess.com"]
[Date "2024.02.06"]
[Round "3"]
[White "AndresDelgado77"]
[Black "jasonbolivar"]
[Result "1-0"]
[WhiteElo "2348"]
[BlackElo "2302"]
[TimeControl "180+1"]
[EndTime "8:27:58 PST"]
[Termination "AndresDelgado77 won on time"]

1. e4 {[%clk 0:03:00]} 1... c5 {[%clk 0:02:59.7]} 2. Nf3 {[%clk 0:02:58.6]} 2...
d6 {[%clk 0:03:00]} 3. d4 {[%clk 0:02:58.4]} 3... cxd4 {[%clk 0:03:00.9]} 4.
Qxd4 {[%clk 0:02:58.8]} 4... Bd7 {[%clk 0:02:59.3]} 5. Bg5 {[%clk 0:02:57.8]}
5... Nc6 {[%clk 0:02:56.6]} 6. Qd2 {[%clk 0:02:57.9]} 6... h6 {[%clk 0:02:45.9]}
7. Bh4 {[%clk 0:02:57.1]} 7... g5 {[%clk 0:02:34.7]} 8. Bg3 {[%clk 0:02:56.7]}
8... Bg7 {[%clk 0:02:34.9]} 9. Nc3 {[%clk 0:02:57.1]} 9... Nf6 {[%clk
0:02:29.6]} 10. O-O-O {[%clk 0:02:57.2]} 10... Qa5 {[%clk 0:02:26.5]} 11. Kb1
{[%clk 0:02:23.4]} 11... Rc8 {[%clk 0:02:18.2]} 12. Nd5 {[%clk 0:01:39.7]} 12...
Nxe4 {[%clk 0:01:56.4]} 13. Qxa5 {[%clk 0:01:38.9]} 13... Nxa5 {[%clk
0:01:54.8]} 14. Re1 {[%clk 0:01:38.6]} 14... f5 {[%clk 0:00:51.2]} 15. Bd3
{[%clk 0:01:34.4]} 15... Be6 {[%clk 0:00:20.7]} 16. Ne3 {[%clk 0:00:48.8]} 16...
Nxg3 {[%clk 0:00:12.8]} 17. hxg3 {[%clk 0:00:47.3]} 17... O-O {[%clk 0:00:12.3]}
18. Nf1 {[%clk 0:00:28.2]} 18... Rf6 {[%clk 0:00:06.5]} 19. N1d2 {[%clk
0:00:23.2]} 19... Nc6 {[%clk 0:00:05.6]} 20. Rxe6 {[%clk 0:00:22.3]} 20... Rxe6
{[%clk 0:00:05.1]} 21. Bc4 {[%clk 0:00:22.7]} 21... Nd8 {[%clk 0:00:03.9]} 22.
Bxe6+ {[%clk 0:00:18.5]} 22... Nxe6 {[%clk 0:00:03.9]} 23. Re1 {[%clk
0:00:18.7]} 23... Kf7 {[%clk 0:00:04.2]} 24. Nb3 {[%clk 0:00:18.1]} 24... Nc5
{[%clk 0:00:03.6]} 25. Nbd4 {[%clk 0:00:17.8]} 25... e6 {[%clk 0:00:02.8]} 26.
b4 {[%clk 0:00:17]} 26... Na4 {[%clk 0:00:01]} 27. Nxe6 {[%clk 0:00:17]} 27...
Nc3+ {[%clk 0:00:01.6]} 28. Kc1 {[%clk 0:00:16.6]} 28... Bf6 {[%clk 0:00:02]}
29. a3 {[%clk 0:00:15.6]} 29... Re8 {[%clk 0:00:02]} 30. Nexg5+ {[%clk
0:00:05.1]} 30... hxg5 {[%clk 0:00:01.2]} 31. Rh1 {[%clk 0:00:06]} 1-0

[Event "Early-Titled-Tuesday-Blitz-February-06-2024"]
[Site "Chess.com"]
[Date "2024.02.06"]
[Round "3"]
[White "Ranindu2003"]
[Black "rasmussvane"]
[Result "0-1"]
[WhiteElo "2720"]
[BlackElo "2961"]
[TimeControl "180+1"]
[EndTime "8:27:59 PST"]
[Termination "rasmussvane won by resignation"]

1. e4 {[%clk 0:02:53.2]} 1... c6 {[%clk 0:02:55.9]} 2. d4 {[%clk 0:02:52.1]}
2... d5 {[%clk 0:02:55.5]} 3. exd5 {[%clk 0:02:53]} 3... cxd5 {[%clk 0:02:55.9]}
4. c4 {[%clk 0:02:53.7]} 4... Nf6 {[%clk 0:02:56.2]} 5. Nc3 {[%clk 0:02:54.4]}
5... Nc6 {[%clk 0:02:56.3]} 6. Nf3 {[%clk 0:02:55.1]} 6... a6 {[%clk 0:02:53]}
7. c5 {[%clk 0:02:54.2]} 7... Bg4 {[%clk 0:02:51.5]} 8. Be3 {[%clk 0:02:52.9]}
8... g6 {[%clk 0:02:44.4]} 9. Be2 {[%clk 0:02:49.9]} 9... Bg7 {[%clk 0:02:42.9]}
10. h3 {[%clk 0:02:45.5]} 10... Bxf3 {[%clk 0:02:42.3]} 11. Bxf3 {[%clk
0:02:46.4]} 11... e6 {[%clk 0:02:42.1]} 12. b4 {[%clk 0:02:41.6]} 12... Ng8
{[%clk 0:02:09.5]} 13. O-O {[%clk 0:02:38.9]} 13... Nge7 {[%clk 0:02:09.7]} 14.
Rb1 {[%clk 0:02:36.4]} 14... Nf5 {[%clk 0:02:07.9]} 15. b5 {[%clk 0:01:51]}
15... Ncxd4 {[%clk 0:01:58.6]} 16. bxa6 {[%clk 0:01:08.1]} 16... Nxf3+ {[%clk
0:01:35.7]} 17. Qxf3 {[%clk 0:01:06.6]} 17... Rxa6 {[%clk 0:01:35.9]} 18. Rxb7
{[%clk 0:00:59.3]} 18... O-O {[%clk 0:00:45.9]} 19. Bf4 {[%clk 0:00:56.9]} 19...
Ra3 {[%clk 0:00:43.7]} 20. Rc1 {[%clk 0:00:55.4]} 20... d4 {[%clk 0:00:32.4]}
21. c6 {[%clk 0:00:46.7]} 21... Rxc3 {[%clk 0:00:29]} 22. Rxc3 {[%clk
0:00:45.7]} 22... dxc3 {[%clk 0:00:29.9]} 23. c7 {[%clk 0:00:46.6]} 23... Qd7
{[%clk 0:00:23.6]} 24. Rb8 {[%clk 0:00:46.2]} 24... c2 {[%clk 0:00:16.9]} 25.
Qb7 {[%clk 0:00:37.5]} 25... Ne7 {[%clk 0:00:08.3]} 26. Kh2 {[%clk 0:00:16.8]}
26... Rc8 {[%clk 0:00:06.1]} 27. a4 {[%clk 0:00:14.3]} 27... e5 {[%clk
0:00:06.5]} 28. Bg5 {[%clk 0:00:10.2]} 28... f6 {[%clk 0:00:05]} 29. Be3 {[%clk
0:00:10.4]} 29... Kf7 {[%clk 0:00:03.2]} 30. a5 {[%clk 0:00:10.8]} 30... Qxc7
{[%clk 0:00:03.1]} 31. a6 {[%clk 0:00:09.6]} 31... Qxb7 {[%clk 0:00:03.6]} 32.
Rxb7 {[%clk 0:00:07.8]} 32... Ke6 {[%clk 0:00:03.9]} 33. a7 {[%clk 0:00:06.5]}
33... Ra8 {[%clk 0:00:04.5]} 0-1

[Event "Early-Titled-Tuesday-Blitz-February-06-2024"]
[Site "Chess.com"]
[Date "2024.02.06"]
[Round "3"]
[White "WhiteKnight2612"]
[Black "Der_Balak_3Halak"]
[Result "1-0"]
[WhiteElo "2861"]
[BlackElo "2502"]
[TimeControl "180+1"]
[EndTime "8:27:59 PST"]
[Termination "WhiteKnight2612 won by resignation"]

1. e4 {[%clk 0:03:00.9]} 1... c5 {[%clk 0:02:59.6]} 2. Nf3 {[%clk 0:03:01.4]}
2... Nc6 {[%clk 0:03:00.3]} 3. Bb5 {[%clk 0:03:01.5]} 3... g6 {[%clk 0:02:59.3]}
4. Bxc6 {[%clk 0:03:00.9]} 4... bxc6 {[%clk 0:03:00.2]} 5. O-O {[%clk
0:03:01.5]} 5... Bg7 {[%clk 0:03:00.6]} 6. e5 {[%clk 0:03:02.4]} 6... d6 {[%clk
0:02:50.9]} 7. Re1 {[%clk 0:03:02.7]} 7... Be6 {[%clk 0:02:45.8]} 8. h3 {[%clk
0:03:01.8]} 8... Nh6 {[%clk 0:02:39.8]} 9. Nc3 {[%clk 0:03:01.7]} 9... O-O
{[%clk 0:02:37.5]} 10. d3 {[%clk 0:03:01.9]} 10... Nf5 {[%clk 0:02:35.9]} 11.
Bf4 {[%clk 0:02:57.8]} 11... Rb8 {[%clk 0:02:28.2]} 12. Rb1 {[%clk 0:02:55.8]}
12... h6 {[%clk 0:02:24.5]} 13. Qd2 {[%clk 0:02:55.6]} 13... Kh7 {[%clk
0:02:20.7]} 14. Bh2 {[%clk 0:02:47.2]} 14... Qa5 {[%clk 0:02:10.7]} 15. a3
{[%clk 0:02:37.6]} 15... Nd4 {[%clk 0:02:08.3]} 16. Nxd4 {[%clk 0:02:31.8]}
16... cxd4 {[%clk 0:02:09.2]} 17. Ne4 {[%clk 0:02:32.5]} 17... Qxd2 {[%clk
0:02:05.9]} 18. Nxd2 {[%clk 0:02:33.4]} 18... dxe5 {[%clk 0:02:01.2]} 19. Bxe5
{[%clk 0:02:34.3]} 19... Rb5 {[%clk 0:02:00]} 20. Bxg7 {[%clk 0:02:33.3]} 20...
Kxg7 {[%clk 0:02:00.9]} 21. Nf3 {[%clk 0:02:31.9]} 21... c5 {[%clk 0:01:57.8]}
22. Re5 {[%clk 0:02:25.8]} 22... Rfb8 {[%clk 0:01:52.5]} 23. b3 {[%clk
0:02:25.5]} 23... Kf6 {[%clk 0:01:45.5]} 24. a4 {[%clk 0:02:24.7]} 24... Ra5
{[%clk 0:01:38.1]} 25. Rbe1 {[%clk 0:02:25.2]} 25... Rd8 {[%clk 0:01:34.9]} 26.
Nd2 {[%clk 0:02:24.1]} 26... Rd5 {[%clk 0:01:26.1]} 27. R5e2 {[%clk 0:02:14.2]}
27... Ra6 {[%clk 0:01:18.7]} 28. Nc4 {[%clk 0:02:06.8]} 28... Rg5 {[%clk
0:01:15.6]} 29. Nd2 {[%clk 0:02:03.2]} 29... Kg7 {[%clk 0:01:07.6]} 30. Ne4
{[%clk 0:01:54.4]} 30... Re5 {[%clk 0:01:04.8]} 31. f4 {[%clk 0:01:53.7]} 31...
Rf5 {[%clk 0:01:02.7]} 32. g3 {[%clk 0:01:53.3]} 32... Rc6 {[%clk 0:00:54.9]}
33. h4 {[%clk 0:01:52.9]} 33... Bd5 {[%clk 0:00:50.2]} 34. Nd2 {[%clk
0:01:48.6]} 34... Re6 {[%clk 0:00:44.8]} 35. Rxe6 {[%clk 0:01:36.4]} 35... Bxe6
{[%clk 0:00:45.7]} 36. Ne4 {[%clk 0:01:33.9]} 36... Rd5 {[%clk 0:00:43.2]} 37.
Kf2 {[%clk 0:01:33]} 37... Bf5 {[%clk 0:00:41.1]} 38. Nd2 {[%clk 0:01:33]} 38...
Kf6 {[%clk 0:00:38.6]} 39. Nc4 {[%clk 0:01:32]} 39... e6 {[%clk 0:00:19.8]} 40.
Ne5 {[%clk 0:01:26.8]} 40... g5 {[%clk 0:00:20.2]} 41. hxg5+ {[%clk 0:01:21.2]}
41... hxg5 {[%clk 0:00:21.1]} 42. fxg5+ {[%clk 0:01:08.1]} 42... Kg7 {[%clk
0:00:15.3]} 43. Kf3 {[%clk 0:01:07.1]} 43... Bg6 {[%clk 0:00:13.8]} 44. Kf4
{[%clk 0:01:06.9]} 44... a5 {[%clk 0:00:12.8]} 45. Rh1 {[%clk 0:01:05.6]} 45...
f6 {[%clk 0:00:11.3]} 46. gxf6+ {[%clk 0:01:05.1]} 46... Kxf6 {[%clk 0:00:12.2]}
47. Rh6 {[%clk 0:01:04.2]} 47... Rxe5 {[%clk 0:00:09.3]} 48. Rxg6+ {[%clk
0:01:04.7]} 48... Kxg6 {[%clk 0:00:10.2]} 49. Kxe5 {[%clk 0:01:04.6]} 49... Kf7
{[%clk 0:00:10.2]} 50. g4 {[%clk 0:01:04.1]} 50... Ke7 {[%clk 0:00:10]} 51. g5
{[%clk 0:01:04.5]} 51... Kd7 {[%clk 0:00:10.3]} 52. Kf6 {[%clk 0:01:03.6]} 52...
Kd6 {[%clk 0:00:08.5]} 53. g6 {[%clk 0:01:03.8]} 53... c4 {[%clk 0:00:09.2]} 54.
bxc4 {[%clk 0:01:03.4]} 1-0

[Event "Early-Titled-Tuesday-Blitz-February-06-2024"]
[Site "Chess.com"]
[Date "2024.02.06"]
[Round "3"]
[White "B_nn_t"]
[Black "threemind"]
[Result "1-0"]
[WhiteElo "2392"]
[BlackElo "2136"]
[TimeControl "180+1"]
[EndTime "8:27:59 PST"]
[Termination "B_nn_t won by checkmate"]

1. Nf3 {[%clk 0:03:00.9]} 1... Nf6 {[%clk 0:02:59.7]} 2. e3 {[%clk 0:03:00.8]}
2... g6 {[%clk 0:03:00.6]} 3. c4 {[%clk 0:03:00.1]} 3... Bg7 {[%clk 0:03:01.5]}
4. Nc3 {[%clk 0:02:59.3]} 4... O-O {[%clk 0:03:02.4]} 5. Be2 {[%clk 0:02:56.8]}
5... c6 {[%clk 0:03:02.7]} 6. O-O {[%clk 0:02:56.4]} 6... d5 {[%clk 0:03:03.3]}
7. b3 {[%clk 0:02:56.5]} 7... a5 {[%clk 0:03:02]} 8. Bb2 {[%clk 0:02:55.8]} 8...
a4 {[%clk 0:03:02.1]} 9. Nxa4 {[%clk 0:02:54.9]} 9... dxc4 {[%clk 0:03:02.5]}
10. Nc3 {[%clk 0:02:47.9]} 10... cxb3 {[%clk 0:03:01.2]} 11. axb3 {[%clk
0:02:48.8]} 11... Rxa1 {[%clk 0:03:00.6]} 12. Qxa1 {[%clk 0:02:49.7]} 12... Nbd7
{[%clk 0:02:56.9]} 13. h3 {[%clk 0:02:47]} 13... Nc5 {[%clk 0:02:57.4]} 14. d4
{[%clk 0:02:46.2]} 14... Nxb3 {[%clk 0:02:56.1]} 15. Qa4 {[%clk 0:02:41.2]}
15... Na5 {[%clk 0:02:53.8]} 16. Ra1 {[%clk 0:02:38]} 16... b6 {[%clk
0:02:54.1]} 17. Ne5 {[%clk 0:02:33.6]} 17... Bd7 {[%clk 0:02:51.1]} 18. Nxd7
{[%clk 0:02:27.6]} 18... Nxd7 {[%clk 0:02:50.8]} 19. Bf3 {[%clk 0:02:25.4]}
19... Qc7 {[%clk 0:02:50.6]} 20. Qb4 {[%clk 0:02:16.5]} 20... c5 {[%clk
0:02:43.3]} 21. dxc5 {[%clk 0:02:10.3]} 21... Nxc5 {[%clk 0:02:44.2]} 22. Nd5
{[%clk 0:02:06]} 22... Qd6 {[%clk 0:02:37.9]} 23. Bxg7 {[%clk 0:02:04.2]} 23...
Kxg7 {[%clk 0:02:38.8]} 24. Nxb6 {[%clk 0:01:59.4]} 24... Nab3 {[%clk 0:02:31]}
25. Ra7 {[%clk 0:01:54.3]} 25... Rb8 {[%clk 0:02:27.2]} 26. Qc3+ {[%clk
0:01:54.3]} 26... Qf6 {[%clk 0:02:26.7]} 27. Qxf6+ {[%clk 0:01:51.5]} 27... exf6
{[%clk 0:02:21.7]} 28. Nc4 {[%clk 0:01:51.4]} 28... Ne6 {[%clk 0:02:17.4]} 29.
Bd5 {[%clk 0:01:48.5]} 29... Nbc5 {[%clk 0:02:16.8]} 30. Nd6 {[%clk 0:01:39.6]}
30... Rd8 {[%clk 0:02:14.8]} 31. Bxe6 {[%clk 0:01:33.2]} 31... Rxd6 {[%clk
0:02:13.1]} 32. Rxf7+ {[%clk 0:01:27.6]} 32... Kh6 {[%clk 0:02:11.1]} 33. Bc4
{[%clk 0:01:24.7]} 33... f5 {[%clk 0:02:07.6]} 34. Rc7 {[%clk 0:01:21.9]} 34...
Ne4 {[%clk 0:02:04.7]} 35. Bg8 {[%clk 0:01:12.8]} 35... Rd1+ {[%clk 0:02:02.2]}
36. Kh2 {[%clk 0:01:13.3]} 36... Nxf2 {[%clk 0:02:01.9]} 37. Rxh7+ {[%clk
0:01:08]} 37... Kg5 {[%clk 0:02:01.2]} 38. Rg7 {[%clk 0:01:05.8]} 38... Rh1+
{[%clk 0:01:57.7]} 39. Kg3 {[%clk 0:01:06.1]} 39... Ne4+ {[%clk 0:01:57.8]} 40.
Kf3 {[%clk 0:01:06.7]} 40... Rf1+ {[%clk 0:01:56.9]} 41. Ke2 {[%clk 0:01:07.2]}
41... Rf2+ {[%clk 0:01:56.6]} 42. Kd3 {[%clk 0:01:07.7]} 42... Rxg2 {[%clk
0:01:48.2]} 43. Bd5 {[%clk 0:01:05.6]} 43... Rd2+ {[%clk 0:01:44]} 44. Kc4
{[%clk 0:01:01.9]} 44... Rc2+ {[%clk 0:01:41.2]} 45. Kd3 {[%clk 0:01:00.2]}
45... Rc3+ {[%clk 0:01:29.9]} 46. Kd4 {[%clk 0:00:58.9]} 46... Rc1 {[%clk
0:01:23.7]} 47. Bxe4 {[%clk 0:00:58]} 47... fxe4 {[%clk 0:01:24.4]} 48. Kxe4
{[%clk 0:00:57.6]} 48... Rh1 {[%clk 0:01:25.1]} 49. Rh7 {[%clk 0:00:57.6]} 49...
Ra1 {[%clk 0:01:21.3]} 50. Kf3 {[%clk 0:00:53.5]} 50... Rf1+ {[%clk 0:01:20.9]}
51. Kg3 {[%clk 0:00:52.5]} 51... Rg1+ {[%clk 0:01:17.5]} 52. Kf3 {[%clk
0:00:52.8]} 52... Rf1+ {[%clk 0:01:16.9]} 53. Ke4 {[%clk 0:00:53.4]} 53... Rh1
{[%clk 0:01:14.4]} 54. Ke5 {[%clk 0:00:51.4]} 54... Re1 {[%clk 0:01:13]} 55. e4
{[%clk 0:00:51.7]} 55... Re3 {[%clk 0:01:11.5]} 56. h4+ {[%clk 0:00:51]} 56...
Kg4 {[%clk 0:01:11.2]} 57. Rg7 {[%clk 0:00:51]} 57... Kh5 {[%clk 0:01:11.4]} 58.
Kd5 {[%clk 0:00:50.3]} 58... Rd3+ {[%clk 0:01:10.6]} 59. Ke6 {[%clk 0:00:50.1]}
59... Rd4 {[%clk 0:01:09.6]} 60. e5 {[%clk 0:00:50.4]} 60... Rxh4 {[%clk
0:01:07]} 61. Rh7+ {[%clk 0:00:50.7]} 61... Kg5 {[%clk 0:01:05.4]} 62. Rxh4
{[%clk 0:00:47.6]} 62... Kxh4 {[%clk 0:01:06.3]} 63. Kf6 {[%clk 0:00:48.2]}
63... g5 {[%clk 0:01:06.7]} 64. e6 {[%clk 0:00:48.8]} 64... g4 {[%clk
0:01:07.2]} 65. e7 {[%clk 0:00:49.7]} 65... g3 {[%clk 0:01:07.4]} 66. e8=Q
{[%clk 0:00:49.9]} 66... g2 {[%clk 0:01:07.7]} 67. Qg8 {[%clk 0:00:40.5]} 67...
Kh3 {[%clk 0:01:06.3]} 68. Kf5 {[%clk 0:00:40.7]} 68... Kh2 {[%clk 0:01:06.1]}
69. Qh7+ {[%clk 0:00:41.2]} 69... Kg1 {[%clk 0:01:06.2]} 70. Kg4 {[%clk
0:00:40.1]} 70... Kf2 {[%clk 0:01:05.4]} 71. Qc2+ {[%clk 0:00:39.4]} 71... Kf1
{[%clk 0:01:05.3]} 72. Qd1+ {[%clk 0:00:39.2]} 72... Kf2 {[%clk 0:01:05.6]} 73.
Qf3+ {[%clk 0:00:39.4]} 73... Kg1 {[%clk 0:01:01.7]} 74. Kg3 {[%clk 0:00:38.6]}
74... Kh1 {[%clk 0:01:02.2]} 75. Qxg2# {[%clk 0:00:39.3]} 1-0